{"text_format":"3","workbook":"xlsx","n_sheets":4,"sheets":["Pencapaian","Peta Rencana","Tentang","Data bagan"],"not_rendered":{"charts":1,"defined_names":2},"read":"whole","date_system":"1900"}

{"sheet":"Pencapaian","index":0,"n_rows":27,"n_cols":5,"rows_kept":27}
["Buat Peta Rencana dengan memasukkan pencapaian dan aktivitas dalam lembar kerja ini.\nJudul lembar kerja ini terletak dalam sel C1. \nInformasi tentang cara menggunakan lembar kerja ini, termasuk instruksi untuk pembaca layar terletak dalam lembar kerja Tentang.\nLanjutkan menavigasi ke bawah kolom A untuk instruksi lebih lanjut.",null,"Pencapaian"]
["Judul tabel terletak dalam sel C2 hingga E2. Gunakan opsi Urutkan & Filter untuk mengurutkan atau menemukan entri tertentu.\nMasukkan Pencapaian dengan tanggal dan atur posisi untuk membuat bagan pencapaian, dalam tabel dimulai di sel C3.\nKolom B telah disembunyikan. Bagan dihasilkan dari data ini menggunakan bilah gulir untuk menampilkan potongan kecil garis waktu. Kolom B membantu menentukan Pencapaian yang akan dibuat bagannya ketika bilah gulir ditambahkan. \nPeringatan: Menghapus atau mengubah konten kolom B dapat mengganggu integritas pembuatan bagan dalam buku kerja ini.","No.","Posisi","Tanggal","Pencapaian"]
["Masukkan Posisi untuk membuat bagan tanggal dan pencapaian dalam sel C1. Masukkan angka positif antara 1 hingga 3 untuk membuat bagan pencapaian di atas garis waktu. Masukkan angka negatif antara 1 hingga 3 untuk membuat bagan pencapaian di bawah garis waktu.\nMasukkan Tanggal dan Pencapaian atau aktivitas dalam kolom D dan E dalam tabel.\nUlangi pola ini untuk setiap baris baru dalam tabel di bagian kanan.\nData sampel disediakan dalam baris 3 hingga 26. Ubah atau hapus konten sampel untuk membuat peta rencana Anda sendiri.\nLanjutkan ke sel A27 untuk instruksi berikutnya.",{"$f":"ROW($A1)","v":1},1,{"$f":"TODAY()","v":"2018-07-30"},"Mulai"]
[null,{"$f":"ROW($A2)","v":2},-2,{"$f":"D3+10","v":"2018-08-09"},"Analisis Masalah\naktivitas 1"]
[null,3,1,{"$f":"D4+20","v":"2018-08-29"},"Kembangkan Kasus Bisnis\naktivitas 1\naktivitas 2"]
[null,4,-1,{"$f":"D5+30","v":"2018-09-28"},"Tinjau Presentasi"]
[null,5,{"v":-0.5,"d":"-1"},{"$f":"D6+40","v":"2018-11-07"},"Mulai Kerja dari Jajaran Eksekutif\naktivitas 1\naktivitas 2"]
[null,6,2,{"$f":"D7+50","v":"2018-12-27"},"Penyelarasan Jajaran Eksekutif\naktivitas 1\naktivitas 2\naktivitas 3"]
[null,7,{"v":0.5,"d":"1"},{"$f":"D8+60","v":"2019-02-25"},"Pembelian Pemangku Kepentingan"]
[null,8,-1,{"$f":"D9+70","v":"2019-05-06"},"Pemilihan Sumber Daya"]
[null,9,{"v":0.5,"d":"1"},{"$f":"D10+80","v":"2019-07-25"},"Pembuatan Tim\naktivitas 1 "]
[null,10,-2,{"$f":"D11+90","v":"2019-10-23"},"Mulai Kerja Tim\naktivitas 1 \naktivitas 2\naktivitas 3\naktivitas 4"]
[null,11,3,{"$f":"D12+100","v":"2020-01-31"},"Mulai Pengumpulan Data"]
[null,12,-1,{"$f":"D13+90","v":"2020-04-30"},"Analisis Data"]
[null,13,1,{"$f":"D14+80","v":"2020-07-19"},"Desain"]
[null,14,1,{"$f":"D15+70","v":"2020-09-27"},"Bukti Konsep"]
[null,15,-3,{"$f":"D16+60","v":"2020-11-26"},"Pengujian & Analisis"]
[null,16,-2,{"$f":"D17+50","v":"2021-01-15"},"Desain ulang"]
[null,17,2,{"$f":"D18+40","v":"2021-02-24"},"Pengembangan ulang"]
[null,18,-1,{"$f":"D19+30","v":"2021-03-26"},"Pengujian & Analisis"]
[null,19,1,{"$f":"D20+20","v":"2021-04-15"},"Desain ulang"]
[null,20,-3,{"$f":"D21+10","v":"2021-04-25"},"Pengembangan ulang"]
[null,21,2,{"$f":"D22+20","v":"2021-05-15"},"Pengujian Akhir"]
[null,22,1,{"$f":"D23+30","v":"2021-06-14"},"Pengujian Beta"]
[null,23,-3,{"$f":"D24+40","v":"2021-07-24"},"Peninjauan"]
[null,24,-2,{"$f":"D25+50","v":"2021-09-12"},"Rilis ke Pemasaran"]
["Untuk menambahkan baris dalam tabel Pencapaian Peta Rencana, cukup sisipkan baris baru di atas baris ini.\nTidak ada instruksi lebih lanjut dalam lembar kerja ini.",null,"Untuk menambahkan lebih banyak pencapaian, sisipkan baris baru di atas garis ini."]

{"sheet":"Peta Rencana","index":1,"n_rows":3,"n_cols":4,"rows_kept":3}
["Bagan yang menampilkan pencapaian dari lembar kerja Pencapaian terletak dalam lembar kerja ini. \nTahun ditunjukkan dalam sel B2, C2, dan D2 dan dengan gaya Judul 3 diterapkan.\nBagan 10 pencapaian dibuat secara bersamaan. \nGunakan bilah gulir dalam sel B4 hingga D4 untuk menelusuri peta rencana.\nTahun garis waktu terletak dalam sel B3 hingga D3.\nTidak ada instruksi lebih lanjut dalam lembar kerja ini."]
[]
[null,{"$f":"'Data bagan'!B20","v":2018},{"$f":"'Data bagan'!B21","v":""},{"$f":"'Data bagan'!B22","v":2019}]

{"sheet":"Tentang","index":2,"n_rows":5,"n_cols":1,"rows_kept":5}
["Tentang buku kerja ini"]
["Panduan untuk pembaca layar"]
["Terdapat 4 lembar kerja dalam buku kerja ini. \n\nPencapaian\nPeta Rencana\nTentang\nData Bagan (tersembunyi)\n\nInstruksi untuk setiap lembar kerja terletak dalam kolom A dimulai di sel A1 dari setiap lembar kerja. Instruksi dituliskan dengan teks yang tersembunyi. Setiap langkah akan memandu Anda memahami informasi dalam baris tersebut. Setiap langkah berikutnya berlanjut di sel A2, A3, dan selanjutnya, kecuali dijelaskan sebaliknya dengan jelas. Misalnya, teks instruksi mungkin mengatakan \"lanjutkan ke sel A6\" untuk langkah berikutnya. \n\nTeks tersembunyi tidak akan dicetak.\n\nUntuk menghapus instruksi ini dari lembar kerja apa pun, cukup hapus kolom A.\n"]
["Peta Rencana ini menggunakan posisi untuk membuat bagan pencapaian dan aktivitas. Posisi dapat digunakan untuk menambah bobot pada pencapaian atau aktivitas. Cukup sesuaikan nilai berdasarkan preferensi bobot. Sebagai contoh, pencapaian/aktivitas 3 mungkin memiliki bobot lebih dari pencapaian/aktivitas 2. Untuk menunjukkan hal ini pada bagan, cukup jadikan nilai Posisi pencapaian/aktivitas 3 lebih tinggi dari pencapaian/aktivitas 2.  \n"]
["Ini adalah instruksi terakhir dalam lembar kerja ini."]

{"sheet":"Data bagan","index":3,"n_rows":26,"n_cols":4,"rows_kept":26,"hidden":true}
["Data untuk membuat penyusunan bagan dinamis terletak dalam lembar kerja ini. Jangan hapus lembar kerja ini!\nMenghapus lembar kerja ini dapat mengganggu kemampuan dinamis buku kerja.","Jangan hapus lembar kerja ini!"]
["Judul untuk tabel terletak dalam sel B2.","Konten Bagan Dinamis"]
["Judul tabel terletak dalam sel B3 hingga D3. \nTabel ini diperbarui secara otomatis berdasarkan konten yang dimasukkan dalam lembar kerja Pencapaian.\nPeringatan: Mengubah atau menghapus konten dalam tabel ini dapat mengganggu kemampuan pembaruan bagan dinamis Peta Rencana dalam lembar Peta Rencana.\nLanjutkan ke sel A15 untuk instruksi berikutnya.","Tanggal","Acara","Posisi"]
[null,{"$f":"IFERROR(IF(LEN(Pencapaian!D3)=0,\"\",INDEX(PencapaianPetaRencana[],Pencapaian!$B3+$B$17,3)),\"\")","v":"2018-07-30"},{"$f":"IFERROR(IF(LEN(Pencapaian!E3)=0,\"\",INDEX(PencapaianPetaRencana[],Pencapaian!$B3+$B$17,4)),\"\")","v":"Mulai"},{"$f":"IFERROR(INDEX(PencapaianPetaRencana[],Pencapaian!$B3+$B$17,2),\"\")","v":1}]
[null,{"$f":"IFERROR(IF(LEN(Pencapaian!D4)=0,\"\",INDEX(PencapaianPetaRencana[],Pencapaian!$B4+$B$17,3)),\"\")","v":"2018-08-09"},{"$f":"IFERROR(IF(LEN(Pencapaian!E4)=0,\"\",INDEX(PencapaianPetaRencana[],Pencapaian!$B4+$B$17,4)),\"\")","v":"Analisis Masalah\naktivitas 1"},{"$f":"IFERROR(INDEX(PencapaianPetaRencana[],Pencapaian!$B4+$B$17,2),\"\")","v":-2}]
[null,{"$f":"IFERROR(IF(LEN(Pencapaian!D5)=0,\"\",INDEX(PencapaianPetaRencana[],Pencapaian!$B5+$B$17,3)),\"\")","v":"2018-08-29"},{"$f":"IFERROR(IF(LEN(Pencapaian!E5)=0,\"\",INDEX(PencapaianPetaRencana[],Pencapaian!$B5+$B$17,4)),\"\")","v":"Kembangkan Kasus Bisnis\naktivitas 1\naktivitas 2"},{"$f":"IFERROR(INDEX(PencapaianPetaRencana[],Pencapaian!$B5+$B$17,2),\"\")","v":1}]
[null,{"$f":"IFERROR(IF(LEN(Pencapaian!D6)=0,\"\",INDEX(PencapaianPetaRencana[],Pencapaian!$B6+$B$17,3)),\"\")","v":"2018-09-28"},{"$f":"IFERROR(IF(LEN(Pencapaian!E6)=0,\"\",INDEX(PencapaianPetaRencana[],Pencapaian!$B6+$B$17,4)),\"\")","v":"Tinjau Presentasi"},{"$f":"IFERROR(INDEX(PencapaianPetaRencana[],Pencapaian!$B6+$B$17,2),\"\")","v":-1}]
[null,{"$f":"IFERROR(IF(LEN(Pencapaian!D7)=0,\"\",INDEX(PencapaianPetaRencana[],Pencapaian!$B7+$B$17,3)),\"\")","v":"2018-11-07"},{"$f":"IFERROR(IF(LEN(Pencapaian!E7)=0,\"\",INDEX(PencapaianPetaRencana[],Pencapaian!$B7+$B$17,4)),\"\")","v":"Mulai Kerja dari Jajaran Eksekutif\naktivitas 1\naktivitas 2"},{"$f":"IFERROR(INDEX(PencapaianPetaRencana[],Pencapaian!$B7+$B$17,2),\"\")","v":-0.5}]
[null,{"$f":"IFERROR(IF(LEN(Pencapaian!D8)=0,\"\",INDEX(PencapaianPetaRencana[],Pencapaian!$B8+$B$17,3)),\"\")","v":"2018-12-27"},{"$f":"IFERROR(IF(LEN(Pencapaian!E8)=0,\"\",INDEX(PencapaianPetaRencana[],Pencapaian!$B8+$B$17,4)),\"\")","v":"Penyelarasan Jajaran Eksekutif\naktivitas 1\naktivitas 2\naktivitas 3"},{"$f":"IFERROR(INDEX(PencapaianPetaRencana[],Pencapaian!$B8+$B$17,2),\"\")","v":2}]
[null,{"$f":"IFERROR(IF(LEN(Pencapaian!D9)=0,\"\",INDEX(PencapaianPetaRencana[],Pencapaian!$B9+$B$17,3)),\"\")","v":"2019-02-25"},{"$f":"IFERROR(IF(LEN(Pencapaian!E9)=0,\"\",INDEX(PencapaianPetaRencana[],Pencapaian!$B9+$B$17,4)),\"\")","v":"Pembelian Pemangku Kepentingan"},{"$f":"IFERROR(INDEX(PencapaianPetaRencana[],Pencapaian!$B9+$B$17,2),\"\")","v":0.5}]
[null,{"$f":"IFERROR(IF(LEN(Pencapaian!D10)=0,\"\",INDEX(PencapaianPetaRencana[],Pencapaian!$B10+$B$17,3)),\"\")","v":"2019-05-06"},{"$f":"IFERROR(IF(LEN(Pencapaian!E10)=0,\"\",INDEX(PencapaianPetaRencana[],Pencapaian!$B10+$B$17,4)),\"\")","v":"Pemilihan Sumber Daya"},{"$f":"IFERROR(INDEX(PencapaianPetaRencana[],Pencapaian!$B10+$B$17,2),\"\")","v":-1}]
[null,{"$f":"IFERROR(IF(LEN(Pencapaian!D11)=0,\"\",INDEX(PencapaianPetaRencana[],Pencapaian!$B11+$B$17,3)),\"\")","v":"2019-07-25"},{"$f":"IFERROR(IF(LEN(Pencapaian!E11)=0,\"\",INDEX(PencapaianPetaRencana[],Pencapaian!$B11+$B$17,4)),\"\")","v":"Pembuatan Tim\naktivitas 1 "},{"$f":"IFERROR(INDEX(PencapaianPetaRencana[],Pencapaian!$B11+$B$17,2),\"\")","v":0.5}]
[null,{"$f":"IFERROR(IF(LEN(Pencapaian!D12)=0,\"\",INDEX(PencapaianPetaRencana[],Pencapaian!$B12+$B$17,3)),\"\")","v":"2019-10-23"},{"$f":"IFERROR(IF(LEN(Pencapaian!E12)=0,\"\",INDEX(PencapaianPetaRencana[],Pencapaian!$B12+$B$17,4)),\"\")","v":"Mulai Kerja Tim\naktivitas 1 \naktivitas 2\naktivitas 3\naktivitas 4"},{"$f":"IFERROR(INDEX(PencapaianPetaRencana[],Pencapaian!$B12+$B$17,2),\"\")","v":-2}]
[]
["Kemampuan untuk menggulir peta rencana dilakukan dengan bantuan nilai penambahan. Judul untuk kemampuan ini terletak dalam sel B15.\nTabel dengan header dan satu nilai terletak dalam sel B16 dan B17.\nLanjutkan ke sel A19 untuk instruksi berikutnya.","Kemampuan pengguliran"]
[null,"Penambahan Baris"]
[null,0]
[]
["Bagan Peta Rencana menyusun tahun untuk garis waktu. Untuk melakukannya, tahun harus diambil dari Daftar Pencapaian. \nJudul untuk bagian ini adalah \"Tahun\" di sel B19. \nNilai tahun dibuat otomatis dalam sel C20 hingga C22.\nPeringatan: Menghapus atau mengubah tahun ini dapat mengubah akurasi pembuatan bagan Peta Rencana.\nLanjutkan ke sel A24 untuk instruksi berikutnya.","Tahun"]
[null,{"$f":"IFERROR(YEAR(B4),\"\")","v":2018},"<-- tahun untuk posisi awal peta rencana"]
[null,{"$f":"IFERROR(IF(YEAR($B$9)=$B$20,\"\",YEAR($B$9)),\"\")","v":""},"<-- tahun untuk periode tengah peta rencana. Ingat, bagian ini dapat dikosongkan jika tahun periode sama dengan posisi awal peta rencana"]
[null,{"$f":"IFERROR(IF(YEAR($B$13)=$B$20,\"\",YEAR($B$13)),\"\")","v":2019},"<-- tahun untuk posisi terakhir peta rencana. Ingat, bagian ini dapat dikosongkan jika tahun periode sama dengan posisi awal peta rencana"]
[]
["Penanda donat dalam bagan Peta Rencana berisi tanggal dari konten bagan dinamis dalam lembar kerja ini. Tanggalnya adalah Tanggal pertama dalam sel C24, Tanggal tengah dalam sel C25, dan Tanggal terakhir dalam sel C26.\nTidak ada instruksi lebih lanjut dalam lembar kerja ini.","Tanggal pertama",{"$f":"B4","v":"2018-07-30"}]
[null,"Tanggal tengah",{"$f":"B9","v":"2018-12-27"}]
[null,"Tanggal terakhir",{"$f":"B13","v":"2019-10-23"}]